Workbook

Sheet Confidea wired configurator
F1: D-cerno calculator
M2: # devices
L4: Branch 1 | M4: 25 | O4: Branch
L6: Branch 2 | M6: 1
L8: Branch 3 | M8: 16 | O8: closed loop
L10: Branch 4 | M10: 0
L15: 1
B21: Branch 1 | F21: Branch 2 | J21: Branch 3 | M21: Branch4
B22: Length (m) | D22: 0 | F22: Length (m) | J22: Length (m) | M22: Length (m)
B24: 20 | C24: #1 | F24: 1 | G24: #1 | J24: 1 | K24: #1 | M24: 0 | N24: #1
B27: 2 | C27: #2 | F27: 0 | G27: #2 | J27: 1 | K27: #2 | M27: 0 | N27: #2
B30: 2 | C30: #3 | F30: 0 | G30: #3 | J30: 1 | K30: #3 | M30: 0 | N30: #3
B33: 2 | C33: #4 | F33: 0 | G33: #4 | J33: 1 | K33: #4 | M33: 0 | N33: #4
B36: 2 | C36: #5 | F36: 0 | G36: #5 | J36: 1 | K36: #5 | M36: 0 | N36: #5
B39: 2 | C39: #6 | F39: 0 | G39: #6 | J39: 1 | K39: #6 | M39: 0 | N39: #6
B42: 2 | C42: #7 | F42: 0 | G42: #7 | J42: 1 | K42: #7 | M42: 0 | N42: #7
B45: 2 | C45: #8 | F45: 0 | G45: #8 | J45: 1 | K45: #8 | M45: 0 | N45: #8
B48: 2 | C48: #9 | F48: 0 | G48: #9 | J48: 1 | K48: #9 | M48: 0 | N48: #9
B51: 2 | C51: #10 | F51: 0 | G51: #10 | J51: 1 | K51: #10 | M51: 0 | N51: #10
B54: 2 | C54: #11 | F54: 0 | G54: #11 | J54: 1 | K54: #11 | M54: 0 | N54: #11
B57: 2 | C57: #12 | F57: 0 | G57: #12 | J57: 1 | K57: #12 | M57: 0 | N57: #12
B60: 2 | C60: #13 | F60: 0 | G60: #13 | J60: 1 | K60: #13 | M60: 0 | N60: #13
B63: 2 | C63: #14 | F63: 0 | G63: #14 | J63: 1 | K63: #14 | M63: 0 | N63: #14
B66: 2 | C66: #15 | F66: 0 | G66: #15 | J66: 1 | K66: #15 | M66: 0 | N66: #15
B69: 2 | C69: #16 | F69: 0 | G69: #16 | J69: 1 | K69: #16 | M69: 0 | N69: #16
B72: 2 | C72: #17 | F72: 0 | G72: #17 | J72: 0 | K72: #17 | M72: 0 | N72: #17
B75: 2 | C75: #18 | F75: 0 | G75: #18 | J75: 0 | K75: #18 | M75: 0 | N75: #18
B78: 2 | C78: #19 | F78: 0 | G78: #19 | J78: 0 | K78: #19 | M78: 0 | N78: #19
B81: 2 | C81: #20 | F81: 0 | G81: #20 | J81: 0 | K81: #20 | M81: 0 | N81: #20
B84: 2 | C84: #21 | F84: 0 | G84: #21 | J84: 0 | K84: #21 | M84: 0 | N84: #21
B87: 2 | C87: #22 | F87: 0 | G87: #22 | J87: 0 | K87: #22 | M87: 0 | N87: #22
B90: 2 | C90: #23 | F90: 0 | G90: #23 | J90: 0 | K90: #23 | M90: 0 | N90: #23
B93: 2 | C93: #24 | F93: 0 | G93: #24 | J93: 0 | K93: #24 | M93: 0 | N93: #24
B96: 2 | C96: #25 | F96: 0 | G96: #25 | J96: 0 | K96: #25 | M96: 0 | N96: #25

Sheet Sheet5 (hidden)
A1: Device | B1: length | C1: Voltage [v] | E1: Z[ohm] | G1: Device | H1: length | I1: Voltage [v] | K1: Z[ohm] | M1: Device | N1: length | O1: Voltage [v] | Q1: Z[ohm] | S1: Device | T1: length | U1: Voltage [v] | W1: Z[ohm]
A2: 1 | B2: =IF('Confidea wired configurator'!B24>'Confidea wired configurator'!D22,'Confidea wired configurator'!B24,'Confidea wired configurator'!D22) -> 20 | C2: =IF(A2<=$D$28,(48*(E2/(E2+($D$30*$B$2)))),0) -> 46.12821099 | E2: =IF(A2<$D$28,($D$29*(($D$30*B2)+E3))/($D$29+(($D$30*B2)+E3)),$D$29) -> 39.43026553 | F2: =IF(AND(C2<36,C2>0),1,0) -> 0 | G2: 1 | H2: ='Confidea wired configurator'!F24 -> 1 | I2: =IF(G2<=$J$28,(48*(K2/(K2+($J$30*H2)))),0) -> 47.99583369 | K2: =IF(G2<$J$28,($J$29*(($J$30*H2)+K3))/($J$29+(($J$30*H2)+K3)),$J$29) -> 921.6 | L2: =IF(AND(I2<36,I2>0),1,0) -> 0 | M2: 1 | N2: =IF('Confidea wired configurator'!J24>'Confidea wired configurator'!L15,'Confidea wired configurator'!J24,'Confidea wired configurator'!L15) -> 1 | O2: =IF(M2<=$P$28,(48*(Q2/(Q2+($P$30*$N$2)))),0) -> 47.93386935 | Q2: =IF(M2<$P$28,($P$29*(($P$30*N2)+Q3))/($P$29+(($P$30*N2)+Q3)),$P$29) -> 57.98687232 | R2: =IF(AND(O2<36,O2>0),1,0) -> 0 | S2: 1 | T2: ='Confidea wired configurator'!M24 -> 0 | U2: =IF(S2<=$V$28,(48*(W2/(W2+($V$30*$T$2)))),0) -> 0 | W2: =IF(S2<$V$28,($V$29*(($V$30*T2)+W3))/($V$29+(($V$30*T2)+W3)),$V$29) -> 921.6 | X2: =IF(AND(U2<36,U2>0),1,0) -> 0
A3: 2 | B3: ='Confidea wired configurator'!B27 -> 2 | C3: =IF(A3<=$D$28,(C2*(E3/(E3+($D$30*B3)))),0) -> 45.94255019 | E3: 39.59267675 | F3: =IF(AND(C3<36,C3>0),1,0) -> 0 | G3: 2 | H3: ='Confidea wired configurator'!F27 -> 0 | I3: =IF(G3<=$J$28,(I2*(K3/(K3+($J$30*H3)))),0) -> 0 | K3: 921.6 | L3: =IF(AND(I3<36,I3>0),1,0) -> 0 | M3: 2 | N3: ='Confidea wired configurator'!J27 -> 1 | O3: =IF(M3<=$P$28,(O2*(Q3/(Q3+($P$30*N3)))),0) -> 47.87189963 | Q3: 61.80037191 | R3: =IF(AND(O3<36,O3>0),1,0) -> 0 | S3: 2 | T3: ='Confidea wired configurator'!M27 -> 0 | U3: =IF(S3<=$V$28,(U2*(W3/(W3+($V$30*T3)))),0) -> 0 | W3: 921.6 | X3: =IF(AND(U3<36,U3>0),1,0) -> 0
A4: 3 | B4: ='Confidea wired configurator'!B30 -> 2 | C4: 45.76486553 | E4: 41.20996364 | F4: 0 | G4: 3 | H4: ='Confidea wired configurator'!F30 -> 0 | I4: =IF(G4<=$J$28,(I3*(K4/(K4+($J$30*H4)))),0) -> 0 | K4: 921.6 | L4: 0 | M4: 3 | N4: ='Confidea wired configurator'!J30 -> 1 | O4: 47.81408545 | Q4: 66.16243707 | R4: 0 | S4: 3 | T4: ='Confidea wired configurator'!M30 -> 0 | U4: 0 | W4: 921.6 | X4: 0
A5: 4 | B5: ='Confidea wired configurator'!B33 -> 2 | C5: 45.59512616 | E5: 42.97895084 | F5: 0 | G5: 4 | H5: ='Confidea wired configurator'!F33 -> 0 | I5: 0 | K5: 921.6 | L5: 0 | M5: 4 | N5: ='Confidea wired configurator'!J33 -> 1 | O5: 47.7604218 | Q5: 71.19966393 | R5: 0 | S5: 4 | T5: ='Confidea wired configurator'!M33 -> 0 | U5: 0 | W5: 921.6 | X5: 0
A6: 5 | B6: ='Confidea wired configurator'!B36 -> 2 | C6: 45.4333026 | E6: 44.92132502 | F6: 0 | G6: 5 | H6: ='Confidea wired configurator'!F36 -> 0 | I6: 0 | K6: 921.6 | L6: 0 | M6: 5 | N6: ='Confidea wired configurator'!J36 -> 1 | O6: 47.71090402 | Q6: 77.08084707 | R6: 0 | S6: 5 | T6: ='Confidea wired configurator'!M36 -> 0 | U6: 0 | W6: 921.6 | X6: 0
A7: 6 | B7: ='Confidea wired configurator'!B39 -> 2 | C7: 45.27936678 | E7: 47.06310959 | F7: 0 | G7: 6 | H7: ='Confidea wired configurator'!F39 -> 0 | I7: 0 | K7: 921.6 | L7: 0 | M7: 6 | N7: ='Confidea wired configurator'!J39 -> 1 | O7: 47.66552782 | Q7: 84.03616056 | R7: 0 | S7: 6 | T7: ='Confidea wired configurator'!M39 -> 0 | U7: 0 | W7: 921.6 | X7: 0
A8: 7 | B8: ='Confidea wired configurator'!B42 -> 2 | C8: 45.13329195 | E8: 49.43580582 | F8: 0 | G8: 7 | H8: ='Confidea wired configurator'!F42 -> 0 | I8: 0 | K8: 921.6 | L8: 0 | M8: 7 | N8: ='Confidea wired configurator'!J42 -> 1 | O8: 47.62428924 | Q8: 92.38784773 | R8: 0 | S8: 7 | T8: ='Confidea wired configurator'!M42 -> 0 | U8: 0 | W8: 921.6 | X8: 0
A9: 8 | B9: ='Confidea wired configurator'!B45 -> 2 | C9: 44.99505277 | E9: 52.07791454 | F9: 0 | G9: 8 | H9: ='Confidea wired configurator'!F45 -> 0 | I9: 0 | K9: 921.6 | L9: 0 | M9: 8 | N9: ='Confidea wired configurator'!J45 -> 1 | O9: 47.58718472 | Q9: 102.6013708 | R9: 0 | S9: 8 | T9: ='Confidea wired configurator'!M45 -> 0 | U9: 0 | W9: 921.6 | X9: 0
A10: 9 | B10: ='Confidea wired configurator'!B48 -> 2 | C10: 44.86462522 | E10: 55.03699481 | F10: 0 | G10: 9 | H10: ='Confidea wired configurator'!F48 -> 0 | I10: 0 | K10: 921.6 | L10: 0 | M10: 9 | N10: ='Confidea wired configurator'!J48 -> 1 | O10: 47.55421103 | Q10: 115.3749226 | R10: 0 | S10: 9 | T10: ='Confidea wired configurator'!M48 -> 0 | U10: 0 | W10: 921.6 | X10: 0
A11: 10 | B11: ='Confidea wired configurator'!B51 -> 2 | C11: 44.74198668 | E11: 58.3724946 | F11: 0 | G11: 10 | H11: ='Confidea wired configurator'!F51 -> 0 | I11: 0 | K11: 921.6 | L11: 0 | M11: 10 | N11: ='Confidea wired configurator'!J51 -> 1 | O11: 47.52536531 | Q11: 131.8056627 | R11: 0 | S11: 10 | T11: ='Confidea wired configurator'!M51 -> 0 | U11: 0 | W11: 921.6 | X11: 0
A12: 11 | B12: ='Confidea wired configurator'!B54 -> 2 | C12: 44.62711584 | E12: 62.15971373 | F12: 0 | G12: 11 | H12: ='Confidea wired configurator'!F54 -> 0 | I12: 0 | K12: 921.6 | L12: 0 | M12: 11 | N12: ='Confidea wired configurator'!J54 -> 1 | O12: 47.50064506 | Q12: 153.72219 | R12: 0 | S12: 11 | T12: ='Confidea wired configurator'!M54 -> 0 | U12: 0 | W12: 921.6 | X12: 0
A13: 12 | B13: ='Confidea wired configurator'!B57 -> 2 | C13: =IF(A13<=$D$28,(C12*(E13/(E13+($D$30*B13)))),0) -> 44.51999276 | E13: 66.49546529 | F13: 0 | G13: 12 | H13: ='Confidea wired configurator'!F57 -> 0 | I13: 0 | K13: 921.6 | L13: 0 | M13: 12 | N13: ='Confidea wired configurator'!J57 -> 1 | O13: 47.48004812 | Q13: 184.4159817 | R13: 0 | S13: 12 | T13: ='Confidea wired configurator'!M57 -> 0 | U13: 0 | W13: 921.6 | X13: 0
A14: 13 | B14: ='Confidea wired configurator'!B60 -> 2 | C14: 44.42059885 | E14: 71.50634993 | F14: 0 | G14: 13 | H14: ='Confidea wired configurator'!F60 -> 0 | I14: 0 | K14: 921.6 | L14: 0 | M14: 13 | N14: ='Confidea wired configurator'!J60 -> 1 | O14: 47.46357272 | Q14: 230.4699909 | R14: 0 | S14: 13 | T14: ='Confidea wired configurator'!M60 -> 0 | U14: 0 | W14: 921.6 | X14: 0
A15: 14 | B15: ='Confidea wired configurator'!B63 -> 2 | C15: 44.32891685 | E15: 77.36116734 | F15: 0 | G15: 14 | H15: ='Confidea wired configurator'!F63 -> 0 | I15: 0 | K15: 921.6 | L15: 0 | M15: 14 | N15: ='Confidea wired configurator'!J63 -> 1 | O15: 47.45121742 | Q15: 307.2444408 | R15: 0 | S15: 14 | T15: ='Confidea wired configurator'!M63 -> 0 | U15: 0 | W15: 921.6 | X15: 0
A16: 15 | B16: ='Confidea wired configurator'!B66 -> 2 | C16: 44.24493084 | E16: 84.2900976 | F16: 0 | G16: 15 | H16: ='Confidea wired configurator'!F66 -> 0 | I16: 0 | K16: 921.6 | L16: 0 | M16: 15 | N16: ='Confidea wired configurator'!J66 -> 1 | O16: 47.44298115 | Q16: 460.8199991 | R16: 0 | S16: 15 | T16: ='Confidea wired configurator'!M66 -> 0 | U16: 0 | W16: 921.6 | X16: 0
A17: 16 | B17: ='Confidea wired configurator'!B69 -> 2 | C17: 44.16862624 | E17: 92.61539144 | F17: 0 | G17: 16 | H17: ='Confidea wired configurator'!F69 -> 0 | I17: 0 | K17: 921.6 | L17: 0 | M17: 16 | N17: ='Confidea wired configurator'!J69 -> 1 | O17: 47.43886319 | Q17: 921.6 | R17: 0 | S17: 16 | T17: ='Confidea wired configurator'!M69 -> 0 | U17: 0 | W17: 921.6 | X17: 0
A18: 17 | B18: ='Confidea wired configurator'!B72 -> 2 | C18: 44.09998981 | E18: 102.8025205 | F18: 0 | G18: 17 | H18: ='Confidea wired configurator'!F72 -> 0 | I18: 0 | K18: 921.6 | L18: 0 | M18: 17 | N18: ='Confidea wired configurator'!J72 -> 0 | O18: 0 | Q18: 921.6 | R18: 0 | S18: 17 | T18: ='Confidea wired configurator'!M72 -> 0 | U18: 0 | W18: 921.6 | X18: 0
A19: 18 | B19: ='Confidea wired configurator'!B75 -> 2 | C19: 44.03900962 | E19: 115.5496904 | F19: 0 | G19: 18 | H19: ='Confidea wired configurator'!F75 -> 0 | I19: 0 | K19: 921.6 | L19: 0 | M19: 18 | N19: ='Confidea wired configurator'!J75 -> 0 | O19: 0 | Q19: 921.6 | R19: 0 | S19: 18 | T19: ='Confidea wired configurator'!M75 -> 0 | U19: 0 | W19: 921.6 | X19: 0
A20: 19 | B20: ='Confidea wired configurator'!B78 -> 2 | C20: 43.9856751 | E20: 131.9540795 | F20: 0 | G20: 19 | H20: ='Confidea wired configurator'!F78 -> 0 | I20: 0 | K20: 921.6 | L20: 0 | M20: 19 | N20: ='Confidea wired configurator'!J78 -> 0 | O20: 0 | Q20: 921.6 | R20: 0 | S20: 19 | T20: ='Confidea wired configurator'!M78 -> 0 | U20: 0 | W20: 921.6 | X20: 0
A21: 20 | B21: ='Confidea wired configurator'!B81 -> 2 | C21: 43.93997697 | E21: 153.8443158 | F21: 0 | G21: 20 | H21: ='Confidea wired configurator'!F81 -> 0 | I21: 0 | K21: 921.6 | L21: 0 | M21: 20 | N21: ='Confidea wired configurator'!J81 -> 0 | O21: 0 | Q21: 921.6 | R21: 0 | S21: 20 | T21: ='Confidea wired configurator'!M81 -> 0 | U21: 0 | W21: 921.6 | X21: 0
A22: 21 | B22: ='Confidea wired configurator'!B84 -> 2 | C22: =IF(A22<=$D$28,(C21*(E22/(E22+($D$30*B22)))),0) -> 43.90190732 | E22: =IF(A22<$D$28,($D$29*(($D$30*B22)+E23))/($D$29+(($D$30*B22)+E23)),$D$29) -> 184.5119267 | F22: 0 | G22: 21 | H22: ='Confidea wired configurator'!F84 -> 0 | I22: =IF(G22<=$J$28,(I21*(K22/(K22+($J$30*H22)))),0) -> 0 | K22: 921.6 | L22: 0 | M22: 21 | N22: ='Confidea wired configurator'!J84 -> 0 | O22: =IF(M22<=$P$28,(O21*(Q22/(Q22+($P$30*N22)))),0) -> 0 | Q22: 921.6 | R22: 0 | S22: 21 | T22: ='Confidea wired configurator'!M84 -> 0 | U22: =IF(S22<=$V$28,(U21*(W22/(W22+($V$30*T22)))),0) -> 0 | W22: =IF(S22<$V$28,($V$29*(($V$30*T22)+W23))/($V$29+(($V$30*T22)+W23)),$V$29) -> 921.6 | X22: 0
A23: 22 | B23: ='Confidea wired configurator'!B87 -> 2 | C23: =IF(A23<=$D$28,(C22*(E23/(E23+($D$30*B23)))),0) -> 43.87145953 | E23: =IF(A23<$D$28,($D$29*(($D$30*B23)+E24))/($D$29+(($D$30*B23)+E24)),$D$29) -> 230.5399636 | F23: 0 | G23: 22 | H23: ='Confidea wired configurator'!F87 -> 0 | I23: =IF(G23<=$J$28,(I22*(K23/(K23+($J$30*H23)))),0) -> 0 | K23: 921.6 | L23: 0 | M23: 22 | N23: ='Confidea wired configurator'!J87 -> 0 | O23: =IF(M23<=$P$28,(O22*(Q23/(Q23+($P$30*N23)))),0) -> 0 | Q23: 921.6 | R23: 0 | S23: 22 | T23: ='Confidea wired configurator'!M87 -> 0 | U23: =IF(S23<=$V$28,(U22*(W23/(W23+($V$30*T23)))),0) -> 0 | W23: =IF(S23<$V$28,($V$29*(($V$30*T23)+W24))/($V$29+(($V$30*T23)+W24)),$V$29) -> 921.6 | X23: 0
A24: 23 | B24: ='Confidea wired configurator'!B90 -> 2 | C24: =IF(A24<=$D$28,(C23*(E24/(E24+($D$30*B24)))),0) -> 43.8486283 | E24: =IF(A24<$D$28,($D$29*(($D$30*B24)+E25))/($D$29+(($D$30*B24)+E25)),$D$29) -> 307.2888745 | F24: 0 | G24: 23 | H24: ='Confidea wired configurator'!F90 -> 0 | I24: =IF(G24<=$J$28,(I23*(K24/(K24+($J$30*H24)))),0) -> 0 | K24: 921.6 | L24: 0 | M24: 23 | N24: ='Confidea wired configurator'!J90 -> 0 | O24: =IF(M24<=$P$28,(O23*(Q24/(Q24+($P$30*N24)))),0) -> 0 | Q24: 921.6 | R24: 0 | S24: 23 | T24: ='Confidea wired configurator'!M90 -> 0 | U24: =IF(S24<=$V$28,(U23*(W24/(W24+($V$30*T24)))),0) -> 0 | W24: =IF(S24<$V$28,($V$29*(($V$30*T24)+W25))/($V$29+(($V$30*T24)+W25)),$V$29) -> 921.6 | X24: 0
A25: 24 | B25: ='Confidea wired configurator'!B93 -> 2 | C25: =IF(A25<=$D$28,(C24*(E25/(E25+($D$30*B25)))),0) -> 43.83340969 | E25: =IF(A25<$D$28,($D$29*(($D$30*B25)+E26))/($D$29+(($D$30*B25)+E26)),$D$29) -> 460.8399965 | F25: 0 | G25: 24 | H25: ='Confidea wired configurator'!F93 -> 0 | I25: =IF(G25<=$J$28,(I24*(K25/(K25+($J$30*H25)))),0) -> 0 | K25: 921.6 | L25: 0 | M25: 24 | N25: ='Confidea wired configurator'!J93 -> 0 | O25: =IF(M25<=$P$28,(O24*(Q25/(Q25+($P$30*N25)))),0) -> 0 | Q25: 921.6 | R25: 0 | S25: 24 | T25: ='Confidea wired configurator'!M93 -> 0 | U25: =IF(S25<=$V$28,(U24*(W25/(W25+($V$30*T25)))),0) -> 0 | W25: =IF(S25<$V$28,($V$29*(($V$30*T25)+W26))/($V$29+(($V$30*T25)+W26)),$V$29) -> 921.6 | X25: 0
A26: 25 | B26: ='Confidea wired configurator'!B96 -> 2 | C26: =IF(A26<=$D$28,(C25*(E26/(E26+($D$30*B26)))),0) -> 43.82580104 | E26: =IF(A26<$D$28,($D$29*(($D$30*B26)+E27))/($D$29+(($D$30*B26)+E27)),$D$29) -> 921.6 | F26: 0 | G26: 25 | H26: ='Confidea wired configurator'!F96 -> 0 | I26: =IF(G26<=$J$28,(I25*(K26/(K26+($J$30*H26)))),0) -> 0 | K26: 921.6 | L26: 0 | M26: 25 | N26: ='Confidea wired configurator'!J96 -> 0 | O26: =IF(M26<=$P$28,(O25*(Q26/(Q26+($P$30*N26)))),0) -> 0 | Q26: 921.6 | R26: 0 | S26: 25 | T26: ='Confidea wired configurator'!M96 -> 0 | U26: =IF(S26<=$V$28,(U25*(W26/(W26+($V$30*T26)))),0) -> 0 | W26: =IF(S26<$V$28,($V$29*(($V$30*T26)+W27))/($V$29+(($V$30*T26)+W27)),$V$29) -> 921.6 | X26: 0
A27: Device power | D27: 2.5 | G27: Device power | J27: 2.5 | K27: =SUM(H2:H26) -> 1 | M27: Device power | P27: 2.5 | S27: Device power | V27: 2.5 | W27: =SUM(T2:T26) -> 0
A28: Devices | D28: =IF('Confidea wired configurator'!M4=0,0,'Confidea wired configurator'!M4) -> 25 | E28: =IF('Confidea wired configurator'!M4=0,1,'Confidea wired configurator'!M4) -> 25 | G28: Devices | J28: =IF('Confidea wired configurator'!M6=0,0,'Confidea wired configurator'!M6) -> 1 | M28: Devices | P28: =IF('Confidea wired configurator'!M8=0,0,'Confidea wired configurator'!M8) -> 16 | Q28: =IF('Confidea wired configurator'!M8=0,1,'Confidea wired configurator'!M8) -> 16 | S28: Devices | V28: =IF('Confidea wired configurator'!M10=0,0,'Confidea wired configurator'!M10) -> 0
A29: Device resistance | D29: =(48^2)/D27 -> 921.6 | G29: Device resistance | J29: =(48^2)/J27 -> 921.6 | M29: Device resistance | P29: =(48^2)/P27 -> 921.6 | S29: Device resistance | V29: =(48^2)/V27 -> 921.6
A30: Line resistance | D30: 0.08 | G30: Line resistance | J30: 0.08 | M30: Line resistance | P30: 0.08 | S30: Line resistance | V30: 0.08
A31: Final Voltage | D31: =INDEX(C2:C26,E28) -> 43.82580104 | G31: Final Voltage | J31: =IF('Confidea wired configurator'!M6>0,INDEX(I2:I26,J28),1) -> 47.99583369 | M31: Final Voltage | P31: =INDEX(O2:O26,Q28) -> 47.43886319 | S31: Final Voltage | V31: =IF('Confidea wired configurator'!M10>0,INDEX(U2:U26,V28),1) -> 1
A32: Total Current | D32: =48/(E2+(D30*B2)) -> 1.16986813 | G32: Total Current | J32: =48/(K2+(J30*H2)) -> 0.0520788126 | M32: Total Current | P32: =48/(Q2+(P30*N2)) -> 0.8266331228 | S32: Total Current | V32: =48/(W2+(V30*T2)) -> 0.05208333333
A33: Total Branch Power | D33: =48*D32 -> 56.15367023 | G33: Total Branch Power | J33: =48*J32 -> 2.499783005 | M33: Total Branch Power | P33: =48*P32 -> 39.6783899 | S33: Total Branch Power | V33: =48*V32 -> 2.5
A34: 0 | B34: 0 | C34: 0 | D34: 0 | E34: 1 | F34: =IF(J35='Confidea wired configurator'!O4,0,1) -> 1 | G34: =IF(J37='Confidea wired configurator'!O8,0,1) -> 0 | H34: =IF($J$35='Confidea wired configurator'!$O$4,1,0) -> 0 | I34: =IF($J$37='Confidea wired configurator'!$O$8,1,0) -> 1 | J34: Branch
A35: 1 | B35: =IF($J$35='Confidea wired configurator'!$O$4,0,1) -> 1 | C35: 1 | D35: =IF($J$37='Confidea wired configurator'!$O$8,0,1) -> 0 | E35: 2 | F35: =IF(J35='Confidea wired configurator'!O4,0,2) -> 2 | G35: =IF($J$37='Confidea wired configurator'!$O$8,0,2) -> 0 | H35: =IF($J$35='Confidea wired configurator'!$O$4,2,0) -> 0 | I35: =IF($J$37='Confidea wired configurator'!$O$8,2,0) -> 2 | J35: closed loop
A36: 2 | B36: =IF($J$35='Confidea wired configurator'!$O$4,0,2) -> 2 | C36: 2 | D36: =IF($J$37='Confidea wired configurator'!$O$8,0,2) -> 0 | E36: 5 | F36: =IF(J35='Confidea wired configurator'!O4,0,5) -> 5 | G36: =IF($J$37='Confidea wired configurator'!$O$8,0,5) -> 0 | H36: =IF($J$35='Confidea wired configurator'!$O$4,5,0) -> 0 | I36: =IF($J$37='Confidea wired configurator'!$O$8,5,0) -> 5 | J36: Branch | N36: som B1 | O36: somB2 | P36: somB3 | Q36: somB4
A37: 3 | B37: =IF($J$35='Confidea wired configurator'!$O$4,0,3) -> 3 | C37: 3 | D37: =IF($J$37='Confidea wired configurator'!$O$8,0,3) -> 0 | E37: 10 | F37: =IF(J35='Confidea wired configurator'!O4,0,10) -> 10 | G37: =IF($J$37='Confidea wired configurator'!$O$8,0,10) -> 0 | H37: =IF($J$35='Confidea wired configurator'!$O$4,10,0) -> 0 | I37: =IF($J$37='Confidea wired configurator'!$O$8,10,0) -> 10 | J37: closed loop | N37: =SUM(Sheet5!B2:B26) -> 68 | O37: =SUM(H2:H26) -> 1 | P37: =SUM(N2:N26) -> 16 | Q37: =SUM(T2:T26) -> 0
A38: 4 | B38: =IF($J$35='Confidea wired configurator'!$O$4,0,4) -> 4 | C38: 4 | D38: =IF($J$37='Confidea wired configurator'!$O$8,0,4) -> 0 | E38: 20 | F38: =IF(J35='Confidea wired configurator'!O4,0,20) -> 20 | G38: =IF($J$37='Confidea wired configurator'!$O$8,0,20) -> 0 | H38: =IF($J$35='Confidea wired configurator'!$O$4,20,0) -> 0 | I38: =IF($J$37='Confidea wired configurator'!$O$8,20,0) -> 20 | N38: total cable lengt: branch/loop
A39: 5 | B39: =IF($J$35='Confidea wired configurator'!$O$4,0,5) -> 5 | C39: 5 | D39: =IF($J$37='Confidea wired configurator'!$O$8,0,5) -> 0 | J39: =('Confidea wired configurator'!M4+'Confidea wired configurator'!M6+'Confidea wired configurator'!M8+'Confidea wired configurator'!M10) -> 42
A40: 6 | B40: =IF($J$35='Confidea wired configurator'!$O$4,0,6) -> 6 | C40: 6 | D40: =IF($J$37='Confidea wired configurator'!$O$8,0,6) -> 0
A41: 7 | B41: =IF($J$35='Confidea wired configurator'!$O$4,0,7) -> 7 | C41: 7 | D41: =IF($J$37='Confidea wired configurator'!$O$8,0,7) -> 0
A42: 8 | B42: =IF($J$35='Confidea wired configurator'!$O$4,0,8) -> 8 | C42: 8 | D42: =IF($J$37='Confidea wired configurator'!$O$8,0,8) -> 0
A43: 9 | B43: =IF($J$35='Confidea wired configurator'!$O$4,0,9) -> 9 | C43: 9 | D43: =IF($J$37='Confidea wired configurator'!$O$8,0,9) -> 0
A44: 10 | B44: =IF($J$35='Confidea wired configurator'!$O$4,0,10) -> 10 | C44: 10 | D44: =IF($J$37='Confidea wired configurator'!$O$8,0,10) -> 0 | F44: Branch/ loop 1
A45: 11 | B45: =IF($J$35='Confidea wired configurator'!$O$4,0,11) -> 11 | C45: 11 | D45: =IF($J$37='Confidea wired configurator'!$O$8,0,11) -> 0 | F45: Branch2
A46: 12 | B46: =IF($J$35='Confidea wired configurator'!$O$4,0,12) -> 12 | C46: 12 | D46: =IF($J$37='Confidea wired configurator'!$O$8,0,12) -> 0 | F46: Branch3/loop 2
A47: 13 | B47: =IF($J$35='Confidea wired configurator'!$O$4,0,13) -> 13 | C47: 13 | D47: =IF($J$37='Confidea wired configurator'!$O$8,0,13) -> 0 | F47: Branch4
A48: 14 | B48: =IF($J$35='Confidea wired configurator'!$O$4,0,14) -> 14 | C48: 14 | D48: =IF($J$37='Confidea wired configurator'!$O$8,0,14) -> 0
A49: 15 | B49: =IF($J$35='Confidea wired configurator'!$O$4,0,15) -> 15 | C49: 15 | D49: =IF($J$37='Confidea wired configurator'!$O$8,0,15) -> 0
A50: 16 | B50: =IF($J$35='Confidea wired configurator'!$O$4,0,16) -> 16 | C50: 16 | D50: =IF($J$37='Confidea wired configurator'!$O$8,0,16) -> 0
A51: 17 | B51: =IF($J$35='Confidea wired configurator'!$O$4,0,17) -> 17 | C51: 17 | D51: =IF($J$37='Confidea wired configurator'!$O$8,0,17) -> 0 | F51: extra lengte loop1
A52: 18 | B52: =IF($J$35='Confidea wired configurator'!$O$4,0,18) -> 18 | C52: 18 | D52: =IF($J$37='Confidea wired configurator'!$O$8,0,18) -> 0 | F52: extra lengte loop2
A53: 19 | B53: =IF($J$35='Confidea wired configurator'!$O$4,0,19) -> 19 | C53: 19 | D53: =IF($J$37='Confidea wired configurator'!$O$8,0,19) -> 0 | F53: aantal devices
A54: 20 | B54: =IF($J$35='Confidea wired configurator'!$O$4,0,20) -> 20 | C54: 20 | D54: =IF($J$37='Confidea wired configurator'!$O$8,0,20) -> 0
A55: 21 | B55: =IF($J$35='Confidea wired configurator'!$O$4,0,21) -> 21 | C55: 21 | D55: =IF($J$37='Confidea wired configurator'!$O$8,0,21) -> 0
A56: 22 | B56: =IF($J$35='Confidea wired configurator'!$O$4,0,22) -> 22 | C56: 22 | D56: =IF($J$37='Confidea wired configurator'!$O$8,0,22) -> 0
A57: 23 | B57: =IF($J$35='Confidea wired configurator'!$O$4,0,23) -> 23 | C57: 23 | D57: =IF($J$37='Confidea wired configurator'!$O$8,0,23) -> 0
A58: 24 | B58: =IF($J$35='Confidea wired configurator'!$O$4,0,24) -> 24 | C58: 24 | D58: =IF($J$37='Confidea wired configurator'!$O$8,0,24) -> 0
A59: 25 | B59: =IF($J$35='Confidea wired configurator'!$O$4,0,25) -> 25 | C59: 25 | D59: =IF($J$37='Confidea wired configurator'!$O$8,0,25) -> 0
